fUST/lending_fUST_20250216
["ID","MTS","AMOUNT","RATE_DAILY","PERIOD"]
[353187237,1739637033168,-500.0,8.865e-05,2]
[353187238,1739637033177,-518.4007016,8.865e-05,2]
[353187239,1739637033188,-501.61593999,8.865e-05,2]
[353187240,1739637033199,-500.0,8.865e-05,2]
[353187241,1739637033208,-406.46081508,8.865e-05,2]
[353187242,1739637033219,-500.0,8.865e-05,2]
[353187243,1739637033230,-468.3,8.865e-05,2]
[353187244,1739637033240,-500.0,8.865e-05,2]
[353187245,1739637033250,-949.91,8.865e-05,2]
[353187246,1739637033260,-144.17904776,8.865e-05,2]
[353187266,1739637037929,-500.0,8.864e-05,2]
[353187268,1739637037940,-1650.58,8.864e-05,2]
[353187269,1739637037952,-154.35798001,8.864e-05,2]
[353187270,1739637037964,-345.64201999,8.864e-05,2]
[353187271,1739637037974,-355.82095224,8.865e-05,2]
[353187272,1739637037984,-830.62,8.865e-05,2]
[353187273,1739637037994,-500.0,8.865e-05,2]
[353187274,1739637038003,-324.71442361,8.865e-05,2]
[353187275,1739637038015,-500.0,8.865e-05,2]
[353187276,1739637038026,-500.0,8.865e-05,2]
[353187277,1739637038035,-804.67,8.865e-05,2]
[353187278,1739637038045,-500.0,8.865e-05,2]
[353187279,1739637038056,-500.0,8.865e-05,2]
[353187280,1739637038065,-500.0,8.865e-05,2]
[353187281,1739637038075,-500.0,8.865e-05,2]
[353187282,1739637038086,-500.0,8.865e-05,2]
[353187283,1739637038096,-500.0,8.865e-05,2]
[353187284,1739637038106,-500.0,8.865e-05,2]
[353187285,1739637038115,-500.0,8.865e-05,2]
[353187286,1739637038128,-500.0,8.865e-05,2]
[353187287,1739637038140,-500.0,8.865e-05,2]
[353187288,1739637038150,-602.98,8.865e-05,2]
[353187289,1739637038159,-3150.82,8.865e-05,2]
[353187290,1739637038168,-500.0,8.865e-05,2]
[353187291,1739637038179,-500.0,8.865e-05,2]
[353187292,1739637038188,-1315.34,8.865e-05,2]
[353187293,1739637038198,-5716.25,8.865e-05,2]
[353187294,1739637038207,-500.0,8.865e-05,2]
[353187295,1739637038217,-500.0,8.865e-05,2]
[353187296,1739637038227,-500.0,8.865e-05,2]
[353187297,1739637038237,-1358.52,8.865e-05,2]
[353187298,1739637038247,-500.0,8.865e-05,2]
[353187299,1739637038257,-730.97,8.865e-05,2]
[353187300,1739637038267,-500.0,8.865e-05,2]
[353187301,1739637038276,-500.0,8.865e-05,2]
[353187302,1739637038286,-500.0,8.865e-05,2]
[353187303,1739637038296,-664.09,8.865e-05,2]
[353187304,1739637038305,-4124.71,8.865e-05,2]
[353187305,1739637038316,-500.0,8.865e-05,2]
[353187306,1739637038328,-995.44,8.865e-05,2]
[353187307,1739637038338,-500.0,8.865e-05,2]
[353187308,1739637038348,-500.0,8.865e-05,2]
[353187309,1739637038358,-433.87366835,8.865e-05,2]
[353187310,1739637038368,-558.16,8.865e-05,2]
[353187311,1739637038377,-1263.04,8.865e-05,2]
[353187312,1739637038388,-500.0,8.865e-05,2]
[353187313,1739637038397,-2328.19,8.865e-05,2]
[353187314,1739637038407,-500.0,8.865e-05,2]
[353187315,1739637038417,-500.0,8.865e-05,2]
[353187316,1739637038426,-500.0,8.865e-05,2]
[353187317,1739637038436,-1043.82,8.865e-05,2]
[353187318,1739637038445,-1940.09,8.865e-05,2]
[353187319,1739637038455,-500.0,8.865e-05,2]
[353187320,1739637038464,-500.0,8.865e-05,2]
[353187321,1739637038474,-500.0,8.865e-05,2]
[353187322,1739637038484,-500.0,8.865e-05,2]
[353187323,1739637038493,-657.9,8.865e-05,2]
[353187324,1739637038504,-500.0,8.865e-05,2]
[353187325,1739637038514,-500.0,8.865e-05,2]
[353187326,1739637038526,-500.0,8.865e-05,2]
[353187327,1739637038536,-500.0,8.865e-05,2]
[353187328,1739637038546,-539.88,8.865e-05,2]
[353187329,1739637038555,-276.42389689,8.865e-05,2]
[353187330,1739637038684,-223.57610311,8.865e-05,2]
[353187331,1739637038695,-770.78,8.865e-05,2]
[353187332,1739637038704,-193.65408418,8.865e-05,2]
[353187337,1739637040354,-306.34591582,8.865e-05,2]
[353187338,1739637040364,-1868.3,8.865e-05,2]
[353187339,1739637040375,-500.0,8.865e-05,2]
[353187340,1739637040384,-500.0,8.865e-05,2]
[353187341,1739637040394,-368.41375835,8.865e-05,2]
[353187342,1739637040405,-131.58624165,8.865e-05,2]
[353187343,1739637040414,-500.0,8.865e-05,2]
[353187344,1739637040424,-2554.14,8.865e-05,2]
[353187345,1739637040435,-504.30822674,8.865e-05,2]
[353187346,1739637040444,-500.0,8.865e-05,2]
[353187347,1739637040453,-500.0,8.865e-05,2]
[353187348,1739637040462,-500.0,8.865e-05,2]
[353187349,1739637040472,-500.0,8.865e-05,2]
[353187350,1739637040481,-3081.57,8.865e-05,2]
[353187351,1739637040491,-704.89,8.865e-05,2]
[353187352,1739637040500,-500.38383298,8.865e-05,2]
[353187353,1739637040509,-548.23,8.865e-05,2]
[353187354,1739637040519,-507.511043,8.865e-05,2]
[353187355,1739637040528,-500.0,8.865e-05,2]
[353187356,1739637040537,-856.1,8.865e-05,2]
[353187357,1739637040547,-500.0,8.865e-05,2]
[353187358,1739637040556,-703.22,8.865e-05,2]
[353187359,1739637040565,-500.0,8.865e-05,2]
[353187360,1739637040574,-1834.12,8.865e-05,2]
[353187361,1739637040583,-500.0,8.865e-05,2]
[353187362,1739637040593,-500.0,8.865e-05,2]
[353187363,1739637040603,-500.0,8.865e-05,2]
[353187364,1739637040612,-500.0,8.865e-05,2]
[353187365,1739637040621,-500.0,8.865e-05,2]
[353187366,1739637040631,-500.0,8.865e-05,2]
[353187367,1739637040640,-661.05,8.865e-05,2]
[353187368,1739637040650,-500.0,8.865e-05,2]
[353187369,1739637040659,-1118.63,8.865e-05,2]
[353187370,1739637040668,-537.08663022,8.865e-05,2]
[353187371,1739637040677,-500.0,8.865e-05,2]
[353187372,1739637040686,-500.0,8.865e-05,2]
[353187373,1739637040695,-1007.25,8.865e-05,2]
[353187374,1739637040704,-500.0,8.865e-05,2]
[353187375,1739637040713,-500.0,8.865e-05,2]
[353187376,1739637040723,-500.0,8.865e-05,2]
[353187377,1739637040732,-500.0,8.865e-05,2]
[353187378,1739637040741,-276.35200748,8.865e-05,2]
[353187379,1739637040750,-4929.75,8.865e-05,2]
[353187380,1739637040759,-500.0,8.866e-05,2]
[353187381,1739637040770,-500.0,8.866e-05,2]
[353187382,1739637040779,-500.0,8.866e-05,2]
[353187383,1739637040789,-500.0,8.866e-05,2]
[353187384,1739637040798,-500.0,8.866e-05,2]
[353187385,1739637040808,-500.0,8.866e-05,2]
[353187386,1739637040817,-500.0,8.866e-05,2]
[353187387,1739637040827,-500.0,8.866e-05,2]
[353187388,1739637040836,-500.0,8.866e-05,2]
[353187389,1739637040846,-500.0,8.866e-05,2]
[353187390,1739637040855,-500.0,8.866e-05,2]
[353187391,1739637040865,-500.0,8.866e-05,2]
[353187392,1739637040874,-500.0,8.866e-05,2]
[353187393,1739637040884,-511.05136273,8.866e-05,2]
[353187394,1739637040893,-500.0,8.866e-05,2]
[353187395,1739637040903,-500.0,8.866e-05,2]
[353187396,1739637040912,-500.0,8.866e-05,2]
[353187397,1739637040921,-500.0,8.866e-05,2]
[353187398,1739637040930,-500.0,8.866e-05,2]
[353187399,1739637040940,-500.0,8.866e-05,2]
[353187400,1739637040949,-500.0,8.866e-05,2]
[353187401,1739637040959,-500.0,8.866e-05,2]
[353187402,1739637040968,-500.0,8.866e-05,2]
[353187403,1739637040977,-500.0,8.866e-05,2]
[353187404,1739637040986,-500.0,8.866e-05,2]
[353187405,1739637040996,-500.0,8.866e-05,2]
[353187406,1739637041005,-500.0,8.866e-05,2]
[353187407,1739637041015,-500.0,8.866e-05,2]
[353187408,1739637041027,-500.0,8.866e-05,2]
[353187409,1739637041036,-500.0,8.866e-05,2]
[353187410,1739637041046,-500.0,8.866e-05,2]
[353187411,1739637041055,-500.0,8.866e-05,2]
[353187412,1739637041066,-500.0,8.866e-05,2]
[353187413,1739637041075,-500.0,8.866e-05,2]
[353187414,1739637041084,-500.0,8.866e-05,2]
[353187415,1739637041095,-500.0,8.866e-05,2]
[353187416,1739637041105,-500.0,8.866e-05,2]
[353187417,1739637041117,-500.0,8.866e-05,2]
[353187418,1739637041127,-501.89557744,8.866e-05,2]
[353187419,1739637041136,-500.0,8.866e-05,2]
[353187420,1739637041146,-500.0,8.866e-05,2]
[353187421,1739637041155,-500.0,8.866e-05,2]
[353187422,1739637041165,-297.99553523,8.866e-05,2]
[353187423,1739637041174,-500.0,8.866e-05,2]
[353187424,1739637041184,-500.0,8.866e-05,2]
[353187425,1739637041194,-500.0,8.866e-05,2]
[353187426,1739637041203,-598.21,8.866e-05,2]
[353187427,1739637041212,-500.0,8.866e-05,2]
[353187428,1739637041222,-500.0,8.866e-05,2]
[353187429,1739637041232,-500.0,8.866e-05,2]
[353187430,1739637041241,-660.54,8.866e-05,2]
[353187431,1739637041250,-390.24881542,8.866e-05,2]
[353187432,1739637041259,-500.0,8.866e-05,2]
[353187433,1739637041269,-500.0,8.866e-05,2]
[353187434,1739637041278,-500.0,8.866e-05,2]
[353187435,1739637041286,-500.0,8.866e-05,2]
[353187436,1739637041296,-500.0,8.866e-05,2]
[353187437,1739637041305,-500.0,8.866e-05,2]
[353187438,1739637041314,-500.0,8.866e-05,2]
[353187439,1739637041324,-500.0,8.866e-05,2]
[353187440,1739637041333,-500.0,8.866e-05,2]
[353187441,1739637041342,-500.0,8.866e-05,2]
[353187442,1739637041352,-500.0,8.866e-05,2]
[353187443,1739637041361,-500.0,8.866e-05,2]
[353187444,1739637041370,-500.0,8.866e-05,2]
[353187445,1739637041379,-500.0,8.866e-05,2]
[353187446,1739637041389,-500.0,8.866e-05,2]
[353187447,1739637041398,-623.55835108,8.866e-05,2]
[353187448,1739637041407,-500.0,8.866e-05,2]
[353187449,1739637041416,-377.93769502,8.866e-05,2]
[353187450,1739637041425,-500.0,8.866e-05,2]
[353187451,1739637041434,-500.0,8.866e-05,2]
[353187452,1739637041444,-500.0,8.866e-05,2]
[353187453,1739637041453,-500.0,8.866e-05,2]
[353187454,1739637041462,-500.0,8.866e-05,2]
[353187455,1739637041472,-38.92614802,8.866e-05,2]
[353187519,1739637043254,-500.0,8.864e-05,2]
[353187521,1739637043264,-63.06372748,8.864e-05,2]
[353187723,1739637046521,-1384.50627252,8.864e-05,2]
[353187726,1739637046537,-3019.53,8.864e-05,2]
[353187728,1739637046554,-1385.57,8.865e-05,2]
[353187731,1739637046569,-461.07385198,8.866e-05,2]
[353187734,1739637046585,-555.75355024,8.866e-05,2]
[353187736,1739637046601,-500.0,8.866e-05,2]
[353187739,1739637046616,-500.0,8.866e-05,2]
[353187741,1739637046631,-501.13242321,8.866e-05,2]
[353187744,1739637046646,-500.0,8.866e-05,2]
[353187746,1739637046660,-500.0,8.866e-05,2]
[353187749,1739637046676,-500.0,8.866e-05,2]
[353187752,1739637046690,-500.0,8.866e-05,2]
[353187754,1739637046704,-500.0,8.866e-05,2]
[353187756,1739637046719,-500.0,8.866e-05,2]
[353187759,1739637046734,-500.0,8.866e-05,2]
[353187762,1739637046750,-500.0,8.866e-05,2]
[353187764,1739637046764,-500.0,8.866e-05,2]
[353187767,1739637046779,-500.0,8.866e-05,2]
[353187769,1739637046796,-500.0,8.866e-05,2]
[353187772,1739637046811,-500.0,8.866e-05,2]
[353187775,1739637046827,-500.0,8.866e-05,2]
[353187777,1739637046841,-500.0,8.866e-05,2]
[353187780,1739637046857,-500.0,8.866e-05,2]
[353187782,1739637046871,-500.0,8.866e-05,2]
[353187785,1739637046886,-500.0,8.866e-05,2]
[353187787,1739637046900,-335.40532929,8.866e-05,2]
[353187790,1739637046914,-508.30197579,8.866e-05,2]
[353187792,1739637046928,-500.0,8.866e-05,2]
[353187795,1739637046943,-500.0,8.866e-05,2]
[353187797,1739637046957,-500.0,8.866e-05,2]
[353187800,1739637046972,-500.0,8.866e-05,2]
[353187802,1739637046986,-207.7908463,8.866e-05,2]
[353187804,1739637047001,-500.0,8.866e-05,2]
[353187807,1739637047017,-500.0,8.866e-05,2]
[353187809,1739637047031,-500.0,8.866e-05,2]
[353187812,1739637047046,-500.0,8.866e-05,2]
[353187814,1739637047063,-500.0,8.866e-05,2]
[353187817,1739637047076,-500.0,8.866e-05,2]
[353187819,1739637047087,-500.0,8.866e-05,2]
[353187820,1739637047099,-500.0,8.866e-05,2]
[353187823,1739637047110,-500.31985881,8.866e-05,2]
[353187825,1739637047122,-500.0,8.866e-05,2]
[353187827,1739637047132,-500.0,8.866e-05,2]
[353187829,1739637047142,-503.22801012,8.866e-05,2]
[353187831,1739637047152,-500.0,8.866e-05,2]
[353187833,1739637047162,-500.0,8.866e-05,2]
[353187857,1739637047377,-500.0,8.866e-05,2]
[353187861,1739637047406,-500.0,8.866e-05,2]
[353187862,1739637047416,-500.0,8.866e-05,2]
[353187864,1739637047425,-500.0,8.866e-05,2]
[353187867,1739637047435,-500.0,8.866e-05,2]
[353187868,1739637047445,-500.0,8.866e-05,2]
[353187871,1739637047457,-506.52363734,8.866e-05,2]
[353187873,1739637047466,-500.0,8.866e-05,2]
[353187875,1739637047475,-500.0,8.866e-05,2]
[353187877,1739637047484,-500.55293402,8.866e-05,2]
[353187879,1739637047494,-500.0,8.866e-05,2]
[353187881,1739637047504,-500.35953449,8.866e-05,2]
[353187883,1739637047513,-503.03732923,8.866e-05,2]
[353187885,1739637047523,-500.0,8.866e-05,2]
[353187887,1739637047533,-500.0,8.866e-05,2]
[353187889,1739637047543,-264.97053944,8.866e-05,2]
[353187906,1739637096527,5204.27339982,8.763e-05,2]
[353187907,1739637105382,7077.9113274,7.929e-05,2]
[353187920,1739637294967,10183.5623097,7.928e-05,2]
[353187923,1739637486354,2144.0440657,7.865e-05,2]
[353187924,1739637505945,780.2937418,7.865e-05,2]
[353187928,1739637634699,458.2004139,7.865e-05,2]
[353187931,1739637758360,250.0,7.865e-05,2]
[353187944,1739638086443,300.0,8.8e-05,2]
[353187950,1739638171962,500.0,0.00019,120]
[353187977,1739638232352,-300.0,8.86e-05,2]
[353187979,1739638232361,-500.0,8.861e-05,2]
[353187981,1739638232371,-500.0,8.861e-05,2]
[353187983,1739638232381,-500.0,8.861e-05,2]
[353187985,1739638232394,-604.78941811,8.861e-05,2]
[353187987,1739638232403,-500.0,8.861e-05,2]
[353187989,1739638232412,-500.7081144,8.861e-05,2]
[353187991,1739638232422,-344.08271797,8.861e-05,2]
[353187993,1739638232435,-500.0,8.861e-05,2]
[353187995,1739638232444,-500.0,8.861e-05,2]
[353187997,1739638232453,-67.14242438,8.861e-05,2]
[353188018,1739638232709,-381.43023913,8.861e-05,2]
[353188019,1739638232719,-500.0,8.861e-05,2]
[353188020,1739638232728,-500.0,8.861e-05,2]
[353188021,1739638232738,-500.0,8.861e-05,2]
[353188022,1739638232747,-500.0,8.861e-05,2]
[353188023,1739638232757,-500.0,8.861e-05,2]
[353188024,1739638232766,-500.0,8.861e-05,2]
[353188025,1739638232776,-500.0,8.861e-05,2]
[353188026,1739638232785,-500.0,8.861e-05,2]
[353188027,1739638232796,-500.0,8.861e-05,2]
[353188028,1739638232805,-500.0,8.861e-05,2]
[353188029,1739638232814,-500.0,8.861e-05,2]
[353188030,1739638232823,-500.0,8.861e-05,2]
[353188031,1739638232831,-500.0,8.861e-05,2]
[353188032,1739638232841,-500.0,8.861e-05,2]
[353188033,1739638232849,-500.0,8.861e-05,2]
[353188034,1739638232859,-500.0,8.861e-05,2]
[353188035,1739638232868,-500.0,8.861e-05,2]
[353188036,1739638232878,-500.0,8.861e-05,2]
[353188037,1739638232887,-500.0,8.861e-05,2]
[353188038,1739638232896,-502.07478489,8.861e-05,2]
[353188039,1739638232906,-500.0,8.861e-05,2]
[353188040,1739638232915,-500.0,8.861e-05,2]
[353188041,1739638232924,-500.0,8.861e-05,2]
[353188042,1739638232934,-220.23291561,8.861e-05,2]
[353188043,1739638232943,-500.0,8.861e-05,2]
[353188044,1739638232952,-500.0,8.861e-05,2]
[353188045,1739638232961,-500.0,8.861e-05,2]
[353188046,1739638232970,-500.0,8.861e-05,2]
[353188047,1739638232979,-504.43353363,8.861e-05,2]
[353188048,1739638232988,-500.0,8.861e-05,2]
[353188049,1739638232998,-500.0,8.861e-05,2]
[353188050,1739638233007,-500.0,8.861e-05,2]
[353188051,1739638233016,-500.0,8.861e-05,2]
[353188052,1739638233026,-500.0,8.861e-05,2]
[353188053,1739638233035,-500.0,8.861e-05,2]
[353188054,1739638233046,-500.0,8.861e-05,2]
[353188055,1739638233056,-500.0,8.861e-05,2]
[353188056,1739638233066,-500.0,8.861e-05,2]
[353188057,1739638233075,-500.0,8.861e-05,2]
[353188058,1739638233086,-500.0,8.861e-05,2]
[353188059,1739638233095,-500.0,8.861e-05,2]
[353188060,1739638233105,-500.0,8.861e-05,2]
[353188061,1739638233114,-500.0,8.861e-05,2]
[353188062,1739638233124,-674.68,8.861e-05,2]
[353188063,1739638233134,-176.96485322,8.861e-05,2]
[353188064,1739638233145,-2483.14,8.861e-05,2]
[353188065,1739638233156,-500.0,8.861e-05,2]
[353188066,1739638233165,-500.0,8.861e-05,2]
[353188067,1739638233175,-625.17,8.861e-05,2]
[353188068,1739638233184,-500.0,8.861e-05,2]
[353188069,1739638233193,-500.0,8.861e-05,2]
[353188070,1739638233203,-879.6,8.861e-05,2]
[353188071,1739638233213,-500.0,8.861e-05,2]
[353188072,1739638233223,-500.0,8.861e-05,2]
[353188073,1739638233232,-500.0,8.861e-05,2]
[353188074,1739638233242,-500.0,8.861e-05,2]
[353188075,1739638233253,-500.0,8.861e-05,2]
[353188076,1739638233263,-500.0,8.861e-05,2]
[353188077,1739638233273,-500.0,8.861e-05,2]
[353188078,1739638233282,-500.0,8.861e-05,2]
[353188079,1739638233292,-500.0,8.861e-05,2]
[353188080,1739638233302,-502.27900688,8.861e-05,2]
[353188081,1739638233313,-273.43915951,8.861e-05,2]
[353188082,1739638233323,-500.0,8.861e-05,2]
[353188083,1739638233333,-644.55,8.861e-05,2]
[353188084,1739638233343,-500.0,8.861e-05,2]
[353188085,1739638233354,-500.0,8.861e-05,2]
[353188086,1739638233365,-500.0,8.861e-05,2]
[353188087,1739638233501,-500.0,8.861e-05,2]
[353188088,1739638233513,-500.0,8.861e-05,2]
[353188089,1739638233524,-500.0,8.861e-05,2]
[353188090,1739638233533,-500.0,8.861e-05,2]
[353188091,1739638233545,-500.0,8.861e-05,2]
[353188092,1739638233555,-500.0,8.861e-05,2]
[353188093,1739638233564,-500.0,8.861e-05,2]
[353188094,1739638233574,-500.0,8.861e-05,2]
[353188095,1739638233583,-500.0,8.861e-05,2]
[353188096,1739638233592,-500.0,8.861e-05,2]
[353188097,1739638233602,-500.0,8.861e-05,2]
[353188098,1739638233611,-500.0,8.861e-05,2]
[353188099,1739638233621,-500.0,8.861e-05,2]
[353188100,1739638233630,-500.0,8.861e-05,2]
[353188101,1739638233640,-500.0,8.861e-05,2]
[353188102,1739638233650,-500.0,8.861e-05,2]
[353188103,1739638233660,-500.0,8.861e-05,2]
[353188104,1739638233671,-500.0,8.861e-05,2]
[353188105,1739638233681,-500.0,8.861e-05,2]
[353188106,1739638233690,-531.7,8.861e-05,2]
[353188107,1739638233701,-500.0,8.861e-05,2]
[353188108,1739638233711,-500.0,8.862e-05,2]
[353188109,1739638233720,-500.0,8.862e-05,2]
[353188110,1739638233730,-500.0,8.862e-05,2]
[353188111,1739638233740,-1052.28,8.862e-05,2]
[353188112,1739638233750,-500.0,8.862e-05,2]
[353188113,1739638233759,-500.0,8.862e-05,2]
[353188114,1739638233769,-884.87,8.862e-05,2]
[353188115,1739638233778,-500.0,8.862e-05,2]
[353188116,1739638233790,-905.23,8.862e-05,2]
[353188117,1739638233800,-845.87,8.862e-05,2]
[353188118,1739638233810,-500.0,8.862e-05,2]
[353188119,1739638233819,-1514.55,8.862e-05,2]
[353188120,1739638233828,-500.0,8.862e-05,2]
[353188121,1739638233838,-898.68,8.862e-05,2]
[353188122,1739638233847,-500.0,8.862e-05,2]
[353188123,1739638233857,-500.0,8.862e-05,2]
[353188124,1739638233867,-500.0,8.862e-05,2]
[353188125,1739638233877,-500.0,8.862e-05,2]
[353188126,1739638233886,-500.0,8.862e-05,2]
[353188127,1739638233895,-961.72,8.862e-05,2]
[353188128,1739638233904,-500.0,8.862e-05,2]
[353188129,1739638233914,-500.0,8.862e-05,2]
[353188130,1739638233923,-500.0,8.862e-05,2]
[353188131,1739638233933,-1448.98,8.862e-05,2]
[353188132,1739638233943,-832.21,8.862e-05,2]
[353188133,1739638233953,-831.33,8.862e-05,2]
[353188134,1739638233962,-500.0,8.862e-05,2]
[353188135,1739638233971,-500.0,8.862e-05,2]
[353188136,1739638233980,-500.0,8.862e-05,2]
[353188137,1739638233989,-500.0,8.862e-05,2]
[353188138,1739638233998,-500.0,8.862e-05,2]
[353188139,1739638234008,-800.26,8.862e-05,2]
[353188140,1739638234017,-500.0,8.862e-05,2]
[353188141,1739638234026,-500.0,8.862e-05,2]
[353188142,1739638234036,-500.0,8.862e-05,2]
[353188143,1739638234046,-500.0,8.862e-05,2]
[353188144,1739638234055,-598.69,8.862e-05,2]
[353188145,1739638234066,-500.0,8.862e-05,2]
[353188146,1739638234075,-1297.93,8.862e-05,2]
[353188147,1739638234085,-500.0,8.862e-05,2]
[353188148,1739638234095,-500.0,8.862e-05,2]
[353188149,1739638234104,-500.0,8.862e-05,2]
[353188150,1739638234114,-3026.22,8.862e-05,2]
[353188151,1739638234123,-500.0,8.862e-05,2]
[353188152,1739638234133,-500.0,8.862e-05,2]
[353188153,1739638234143,-5820.7,8.862e-05,2]
[353188154,1739638234153,-233.28440918,8.862e-05,2]
[353188155,1739638234163,-500.0,8.862e-05,2]
[353188156,1739638234173,-500.0,8.862e-05,2]
[353188157,1739638234184,-1447.03,8.862e-05,2]
[353188158,1739638234194,-500.0,8.862e-05,2]
[353188159,1739638234204,-722.26,8.862e-05,2]
[353188160,1739638234213,-500.0,8.862e-05,2]
[353188161,1739638234223,-1682.68,8.862e-05,2]
[353188162,1739638234234,-500.0,8.862e-05,2]
[353188163,1739638234244,-500.0,8.862e-05,2]
[353188164,1739638234254,-500.0,8.862e-05,2]
[353188165,1739638234264,-500.0,8.862e-05,2]
[353188166,1739638234275,-702.29,8.862e-05,2]
[353188167,1739638234284,-976.67,8.862e-05,2]
[353188168,1739638234296,-4119.29,8.862e-05,2]
[353188169,1739638234306,-1266.11,8.862e-05,2]
[353188170,1739638234317,-500.0,8.862e-05,2]
[353188171,1739638234327,-500.0,8.862e-05,2]
[353188172,1739638234337,-500.0,8.862e-05,2]
[353188173,1739638234346,-2325.04,8.862e-05,2]
[353188174,1739638234356,-500.0,8.862e-05,2]
[353188175,1739638234365,-500.0,8.862e-05,2]
[353188176,1739638234375,-500.0,8.862e-05,2]
[353188177,1739638234386,-1923.06,8.862e-05,2]
[353188178,1739638234401,-4142.13,8.862e-05,2]
[353188179,1739638234410,-500.0,8.862e-05,2]
[353188180,1739638234420,-500.0,8.862e-05,2]
[353188181,1739638234431,-500.0,8.862e-05,2]
[353188182,1739638234441,-1022.08,8.862e-05,2]
[353188183,1739638234451,-500.0,8.862e-05,2]
[353188184,1739638234461,-500.0,8.862e-05,2]
[353188185,1739638234472,-500.0,8.862e-05,2]
[353188186,1739638234482,-500.0,8.862e-05,2]
[353188187,1739638234491,-500.0,8.862e-05,2]
[353188188,1739638234500,-1844.96,8.862e-05,2]
[353188189,1739638234510,-672.16,8.862e-05,2]
[353188190,1739638234520,-559.05,8.862e-05,2]
[353188191,1739638234530,-500.0,8.862e-05,2]
[353188192,1739638234540,-2530.03,8.862e-05,2]
[353188193,1739638234550,-500.0,8.862e-05,2]
[353188194,1739638234560,-500.0,8.862e-05,2]
[353188195,1739638234569,-500.0,8.862e-05,2]
[353188196,1739638234578,-500.0,8.862e-05,2]
[353188197,1739638234588,-500.0,8.862e-05,2]
[353188198,1739638234597,-759.49,8.862e-05,2]
[353188199,1739638234606,-500.0,8.862e-05,2]
[353188200,1739638234616,-696.35,8.862e-05,2]
[353188201,1739638234625,-167.22536675,8.862e-05,2]
[353188202,1739638234634,-500.0,8.862e-05,2]
[353188203,1739638234643,-501.4517509,8.862e-05,2]
[353188204,1739638234653,-500.0,8.862e-05,2]
[353188205,1739638234663,-500.0,8.862e-05,2]
[353188206,1739638234672,-500.0,8.862e-05,2]
[353188207,1739638234682,-502.66683598,8.862e-05,2]
[353188208,1739638234691,-611.14,8.862e-05,2]
[353188209,1739638234701,-546.22,8.862e-05,2]
[353188210,1739638234711,-500.0,8.862e-05,2]
[353188211,1739638234720,-2953.17,8.862e-05,2]
[353188212,1739638234730,-841.59,8.862e-05,2]
[353188213,1739638234740,-500.0,8.862e-05,2]
[353188214,1739638234749,-500.0,8.862e-05,2]
[353188215,1739638234758,-1757.7,8.862e-05,2]
[353188216,1739638234768,-500.0,8.862e-05,2]
[353188217,1739638234777,-428.17350245,8.862e-05,2]
[353188218,1739638234786,-2831.96,8.862e-05,2]
[353188219,1739638234797,-500.0,8.862e-05,2]
[353188220,1739638234806,-7981.93,8.862e-05,2]
[353188221,1739638234815,-1697.99,8.862e-05,2]
[353188222,1739638234825,-500.0,8.862e-05,2]
[353188223,1739638234834,-835.4,8.862e-05,2]
[353188224,1739638234843,-1095.72,8.862e-05,2]
[353188225,1739638234852,-500.0,8.862e-05,2]
[353188226,1739638234861,-500.0,8.862e-05,2]
[353188227,1739638234871,-675.17,8.862e-05,2]
[353188228,1739638234880,-1383.17,8.862e-05,2]
[353188229,1739638234890,-500.0,8.862e-05,2]
[353188230,1739638234899,-500.0,8.862e-05,2]
[353188231,1739638234909,-500.0,8.862e-05,2]
[353188232,1739638234918,-500.0,8.862e-05,2]
[353188233,1739638234927,-500.0,8.862e-05,2]
[353188234,1739638234936,-500.0,8.862e-05,2]
[353188235,1739638234945,-3389.72,8.862e-05,2]
[353188236,1739638234955,-217.81357733,8.862e-05,2]
[353188237,1739638234964,-555.66,8.862e-05,2]
[353188238,1739638234973,-500.0,8.862e-05,2]